{"text_format":"3","workbook":"xlsx","n_sheets":9,"sheets":["Cover","Contents","Notes to Tenderers","Divider","Sec 01 - Maint","Divider.","Sec 02 - Outage","Divider. (2)","Final Summary"],"not_rendered":{"images":1,"external_links":15,"defined_names":786},"read":"whole","date_system":"1900"}

{"sheet":"Cover","index":0,"n_rows":45,"n_cols":8,"rows_kept":45,"merged":[[9,0,9,9],[11,0,11,9],[12,1,25,9],[28,6,28,9],[31,6,31,9],[34,6,34,9],[37,6,37,9]]}
[" "]
{"$rows_empty":7}
[{"$nulls":7}," "]
["ESKOM GENERATION"]
["  "]
[2025]
[null,"THE  PROVISION OF TURBINE WELDING AND MAINTENANCE SERVICE CONTRACT ON AS AND WHEN REQUIRED BASIS FOR A PERIOD OF 60 MONTHS AT CAMDEN POWER STATION  - BILLS OF QUANTITIES "]
{"$rows_empty":15}
["CONTRACT NUMBER",{"$nulls":4},":"]
[]
[]
["CONTRACTOR",{"$nulls":4},":"]
[]
[]
["CONTRACT AMOUNT (EXCL. VAT)",{"$nulls":4},":",{"$f":"'Final Summary'!C14","v":0}]
[]
[]
["CONTRACT AMOUNT (INCL. VAT)",{"$nulls":4},":",{"$f":"'Final Summary'!C18","v":0}]
[]
[]
[]
[]
[]
[]
[null,null," "]

{"sheet":"Contents","index":1,"n_rows":15,"n_cols":9,"rows_kept":15,"merged":[[0,0,0,8],[2,0,2,8]]}
[{"$f":"Cover!B13","v":"THE  PROVISION OF TURBINE WELDING AND MAINTENANCE SERVICE CONTRACT ON AS AND WHEN REQUIRED BASIS FOR A PERIOD OF 60 MONTHS AT CAMDEN POWER STATION  - BILLS OF QUANTITIES "}]
[]
["TABLE OF CONTENTS"]
[]
[null,"Contract Data"]
[]
[null,"Notes to Tenderers"]
[]
[null,"Bill of Quantities"]
[]
[null,"Section 1",null,": Maintenance BOQ"]
[]
[null,"Section 2",null,": Outage BOQ"]
[]
[null,"Final Summary",{"$nulls":6}," "]

{"sheet":"Notes to Tenderers","index":2,"n_rows":104,"n_cols":2,"rows_kept":104}
[]
[null,"NOTES TO TENDERERS"]
[]
[null,"1. BILLS OF QUANTITIES"]
[]
[null,"This document comprises Notes to Tenderers and Bills of Quantities and is hereafter referred to as \"the Bills of Quantities\"."]
[]
[null,"The Tenderers are to note that this is a Contract with a Bills of Quantities."]
[]
[null,"2.1 CONTRACT DOCUMENTS"]
[]
[null,"The contract documents will consist of:"]
[]
[null,"2.1.1 The NEC3 Term Service Contract 2013 together with all amendments."]
[]
[null,"2.1.2 These Bills of Quantities, including all annexures and supplementary documentation referred to therein."]
[]
[null,"2.1.3 Documents to be provided by the Contractor in terms of the requirements of these Bills of Quantities."]
[]
[null,"2.1.4 Construction Regulations 2014"]
[]
[null,"2.1.5 Occupational Health and Safety Act of 1993"]
[]
[null,"2.1.6 Scope of works documents"]
[]
[null,"3 VALUE ADDED TAX"]
[]
[null,"Tenderers should compute their rates from the net costs (excluding Value Added Tax). Value Added Tax at the current rate of 15% is to be added to the net sub-total on the final summary page by means of a single sum calculation to establish the tender price."]
[]
[null,"4 SCOPE OF WORK"]
[]
[null,"As a guide only, the work comprises as follows:-"]
[]
[null,"The Provision of Turbine Welding and Maintenance Service Contract on an as and when Required Basis for a Period of 60 months at Camden Power Station"]
[]
[null,"5 ADDRESS WHERE DOCUMENTS CAN BE OBTAINED"]
[]
[null,"Tender documents will be made available Electronically on an online portal to be provided by  Eskom"]
[]
[null,"6 POSSESSION OF SITE"]
[]
[null,"The date of which possession of the Site shall be given to the Contractor shall be within 7 working days of the acceptance of this tender."]
[]
[null,"7 CONSTRUCTION PERIOD -  DATES FOR PRACTICAL COMPLETION"]
[]
[null,"Practical Completion:  60 Months from the date of Site Handover"]
[]
[null,"Tenderers are to note that the Contract will be delivered as a whole and NOT to be phased."]
[]
[null,"8 COMMON LAW OR BY-LAW REQUIREMENTS"]
[]
[null,"No liability for not specifically mentioning any normal contractual, Common Law or By-Law requirements will be accepted by the Employer,  or Terms Service Manager."]
[]
[null,"9 CONTRACT PRICE ADJUSTMENT"]
[]
[null,"The Contract Sum shall  be subject to CPAP."]
[]
[null,"10. PRICED BILLS OF QUANTITIES:"]
[]
[null,"Tenderers must submit to the Terms Service Manager a copy of the Bills of Quantities fully priced and extended, with his tender. After the Bills have been checked, and when called upon, each page of the Bills of Quantities shall be initialed and the Index page and the Final Summary page signed in full. "]
[]
[null,"11 DIFFERENCE AND DISCREPANCIES:"]
[]
[null,"Should there be any difference or discrepancy between the prices or particulars contained in the official Tender Form and those contained in any covering letter from the Tenderer, the prices contained in the official Tender Form shall prevail."]
[]
[null,"Every Tenderer shall be deemed to have waived, renounced and abandoned any conditions printed or written upon any stationery used by him for the purpose of or in connection with the submission of his Tender, which are in conflict with the Conditions of Tender."]
[]
[null,"Tenderers are warned that any material divergence from the official conditions or specifications may render their Tenders liable to disqualification."]
[]
[null,"The Tenderers are to note that if there are any arithmetical errors in the Tenderers' form of tender in calculation of the Tender Sum, the Terms Service Manager will correct the calculation accordingly."]
[]
[null,"12 COMMUNICATION WITH MEMBERS OF THE CLIENT COMPANY OR PROFESSIONAL TEAM"]
[]
[null,"A Tenderer shall not in any way communicate with a member of the Client Company or Professional Team or with any officer on a question affecting any contract or the supply of goods or for any work, undertaking or service which is the subject of a Tender during the period between the closing date for receipt of Tenders and the dispatch of the written notification of the Employer's decision on the award of the contract; provided that a Tenderer shall not hereby be precluded from obtaining from the Employer or his authorised representative information as to the date upon which the award of the contract is likely to be made or, after the decision upon the award has been made by the Terms Service Manager to which the Employer had delegated its powers, information as to the nature of the decision or such information as was publicly disclosed at the opening of Tenders."]
[]
[null,"13 BILLS OF QUANTITIES:"]
[]
[null,"No alteration, erasure, omission or addition is to be made to the text and conditions of these Bills of Quantities and should any such alteration, amendment, note or addition be made, the same will not be recognised, but the reading of the Bills of Quantities as prepared by the Terms Service Manager will be adhered to."]
[]
[null,"It should be understood that the system of measurement herein adopted is the only system of measurement which will be recognised in connection with this contract. Before the signing of the contract, the Terms Service Manager will be entitled to call for adjustments of individual rates and rectify discrepancies, as he considers necessary without alterations to the Tender amount."]
[]
[null,"6 Ensure that every employee or person (including visitors) who enters the site of the Works undergoes health and safety induction training pertaining to hazards identified on the site of the Works and upon such training having been successfully completed, the Contractor must issue written confirmation by a competent person to the trained employees or persons who shall be further instructed to carry such confirmation with them at all times whilst on the site of the Works;"]
[]
[null,"7 Issue, on loan, the necessary personal protective equipment to visitors to the site of the Works; and"]
[]
[null,"8 Be in good standing with the Compensation Commissioner at all times during the duration of the Contract."]
[]
[null,"9 The Contractor is to sign a Non-Disclosure Agreement prior to collecting or receiving any proprietary information from Eskom, drawings, documentation, reports and photographs"]
[]
[null,"The Contractor will be deemed to have satisfied himself with his obligations in terms of the Act and to have allowed for all costs arising from compliance with the Act as no claim for extra costs arising from compliance with, and obligations in terms of the Act will be entertained."]
[]
[null,"14 PRICING OF THESE GENERAL NOTES"]
[]
[null,"The Contractor must allow in his pricing for any additional costs arising from these \"General Notes\" as no later claims for additional costs will be considered."]
[]
[null,"15 TAX COMPLIANCE"]
[]
[null,"Failure to provide mandatory information required in this Bid will result in the submissions being deemed null and void and shall be considered non-responsive. An Electronic Tax Compliance Status (TCS) System will be used to verify the bidder’s tax compliance status so bidders must request a unique security personal identification number (PIN) from SARS which must be submitted with the bid"]
[]
[null,"No alternative tender offers will be considered."]
[]
[null,"These Bills are not to be used for the purpose of ordering materials."]
[]
[null,"All Bill rates are to include for food,material, labour, plant, wastage, transport and profit."]

{"sheet":"Divider","index":3,"n_rows":13,"n_cols":1,"rows_kept":13,"merged":[[12,0,26,8]]}
{"$rows_empty":12}
["SECTION 1: MAINTENANCE BOQ"]

{"sheet":"Sec 01 - Maint","index":4,"n_rows":200,"n_cols":8,"rows_kept":200,"merged":[[11,1,11,2],[13,1,13,2],[15,1,15,2],[19,1,19,2],[21,1,21,2],[25,1,25,2],[29,1,29,2],[33,1,33,2],[35,1,35,2],[37,1,37,2],[199,1,199,2]]}
["Item no","Staff Description","Qualification","Unit","No. of Resources","Qty. (Hrs.)","Rate (R/Hr.)","Amount"]
[{"$nulls":4},"A","B","C","A x B x C"]
[]
[null,"SECTION - 1 MAINTENANCE"]
[]
[null,"BILL OF QUANTITIES"]
[]
[null,"PREAMBLE"]
[]
[null,"Currency"]
[]
[null,"All pricing and amounts to be in the currency of South African Rands (ZAR)"]
[]
[null,"All individual amounts in these bills of quantities exclude Value Added Tax (VAT). VAT is to be calculated as a lump sum and added to the total of all values in the Final Summary under the item provided for VAT"]
[]
[null,"A detailed  and / or itemised breakdown of the P&G's Items will be requested only from the successful bidders for vetting by the employer."]
[]
[null,"RATES"]
[]
[null,"The tenderer is advised that any rate that is required for work must include the following breakdown"]
[]
[null,"Material, labour, plant, wastage, transport and profit."]
[]
[null,"LABOUR INTENSIVE ITEMS"]
[]
[null,"The contractor shall comply with all requirements of the \"Code of Good Practice for Employment and Conditions of Work for Special Public Works Programmes\" issued in terms of the \"Basic Conditions of Employment Act, 1997 (Act No. 75 of 1997)\" and the related \"Ministerial Determination\", for the employment of locally employed temporary workers on a labour-intensive infrastructure project under the Expanded Public Works Programme (EPWP)"]
[]
[null,"SPECIFICATION DOCUMENT"]
[]
[null,"The Contractor is reffered to the Specification Document for the full details of the scope and they are urged to read this document prior to pricing this work."]
[]
[null,"SCOPE OF WORKS"]
[]
[null,"The scope of works encompasses the provision of turbine welding and maintenance services for a priod of 60 months at Camden Power Station"]
[]
[null,"PRICING OF THE BILLS OF QUANTITIES"]
[]
[null,"Any items left unpriced will be understood to be provided free of charge and no claim for any extras arising out of the Tenderers omission to price any item will be entertained"]
[]
[null,"BILL NO.01:  NORMAL WORKING HOURS - TOTAL (60 MONTHS)"]
["Item no","Staff Description","Qualification","Unit","No. of Resources","Qty. (Hrs.)","Rate (R/Hr.)","Amount"]
[{"$nulls":4},"A","B","C","A x B x C"]
[1,"Site Manager  ","Mechanical Diploma (N6) + 5 years relevant experience","Hour",1,10080,null,{"$f":"E43*F43*G43","v":0}]
[2,"Site Foreman ","Trade test + 5 years relevant experience","Hour",1,{"$f":"$F$43","v":10080},null,{"$f":"E44*F44*G44","v":0}]
[3,"Mechanical Supervisor ","Trade test + 3 years relevant experience","Hour",1,{"$f":"$F$43","v":10080},null,{"$f":"E45*F45*G45","v":0}]
[4,"Welding Engineer (As Required)","IWE in line with IIW document IAB-252R2-14 or latest revision, or\nIWT in line with IIW document IAB-252R2-14 or latest revision","Hour",1,4000,null,{"$f":"E46*F46*G46","v":0}]
[5,"Welding Supervisor","IWS in line with IIW document IAB-252R2-14 or latest version, or\nIWP in line with IIW document IAB-252R2-14 or latest version","Hour",2,10080,null,0]
[6,"Welding Inspector (QC)","SAIW Inspector level 2, or IWI-C, or IWI-S","Hour",2,10080,null,0]
[7,"Draftsman (As Required)","Certificate in CAD Drafting and Design Technology","Hour",1,2000,null,0]
[8,"Design Engineer (As Required)","M. Eng. Mechanical + ECSA Registered PR. Eng. + \n5 Years relevant experience","Hour",1,2000,null,0]
[9,"Finite Element Analysis Engineer (As Required)","M. Eng. Mechanical + ECSA Registered PR. Eng. + \n5 Years FEA Experience in design by analysis","Hour",1,2000,null,0]
[10,"Planner ","Diploma, or NQF 5","Hour",1,{"$f":"$F$43","v":10080},null,0]
[11,"Clerk-Admin ","Gr. 12 + Administrative Diploma or Certificate","Hour",1,{"$f":"$F$43","v":10080},null,0]
[12,"SHE Officer ","SAMTRAC, or Registered with SACPCMP, or \nDiploma in OHS or EHS","Hour",2,{"$f":"$F$43","v":10080},null,0]
[13,"Mechanical Fitter ","Trade Test  certificate, or CAT 5","Hour",4,{"$f":"$F$43","v":10080},null,0]
[14,"Pipe Fitter","CAT 5, or Boilermaker trade test certificate","Hour",3,{"$f":"$F$43","v":10080},null,0]
[15,"Welder- Plate, Fillet, and pipe qualification required","Welder qualification to ISO 9606-1","Hour",4,{"$f":"$F$43","v":10080},null,0]
[16,"Boilermaker","Boilermaker trade test certificate","Hour",2,10080,null,0]
[17,"Rigger ","Rigging Trade Test  certificate","Hour",2,10080,null,0]
[18,"Semi-skilled Labourer Mechanical ","CAT 3","Hour",6,10080,null,0]
[19,"Storeman","Staking and Storage certificate","Hour",2,10080,null,0]
[20,"General Assistant","Gr. 10, or higher","Hour",10,{"$f":"$F$43","v":10080},null,0]
[21,"Fire Watch","Gr. 12 + Fire Watcher certificate","Hour",2,{"$f":"$F$43","v":10080},null,0]
[22,"Cleaner","Gr. 10, or higher","Hour",1,{"$f":"$F$43","v":10080},null,0]
[null,"Sub - Total",{"$nulls":5},{"$f":"SUM(H43:H64)","v":0}]
[null,"BILL NO.02: OVERTIME HOURS "]
["Item no","Staff Description","Qualification","Unit","No. of Resources","Qty. (Hrs.)","Rate (R/Hr.)","Amount"]
[{"$nulls":4},"A","B","C","A x B x C"]
[23,"Site Manager  ","Mechanical Diploma+ 5 years relevant experience","Hour",1,1920,null,{"$f":"E69*F69*G69","v":0}]
[24,"Site Forman ","Trade test + 5 years relevant experience","Hour",1,{"$f":"$F$69","v":1920},null,0]
[25,"Mechanical Supervisor ","Trade test + 3 years relevant experience","Hour",1,{"$f":"$F$69","v":1920},null,0]
[26,"Welding Engineer (As Required)","IWE in line with IIW document IAB-252R2-14 or latest revision, or\nIWT in line with IIW document IAB-252R2-14 or latest revision","Hour",1,400,null,0]
[27,"Welding Supervisor","IWS in line with IIW document IAB-252R2-14 or latest version, or\nIWP in line with IIW document IAB-252R2-14 or latest version","Hour",2,{"$f":"$F$69","v":1920},null,0]
[28,"Welding Inspector ","SAIW Inspector level 2, or IWI-C, or IWI-S","Hour",2,{"$f":"$F$69","v":1920},null,0]
[29,"Draftsman (As Required)","Certificate in CAD Drafting and Design Technology","Hour",1,200,null,0]
[30,"Design Engineer (As Required)","M. Eng. Mechanical + ECSA Registered PR. Eng. + \n5 Years relevant experience","Hour",1,200,null,0]
[31,"Finite Element Analysis Engineer (As Required)","M. Eng. Mechanical + ECSA Registered PR. Eng. + \n5 Years FEA Experience in design by analysis","Hour",1,200,null,0]
[32,"Planner ","Diploma, or NQF 5","Hour",1,{"$f":"$F$69","v":1920},null,0]
[33,"Clerk-Admin ","Gr. 12 + Administrative Diploma or Certificate","Hour",1,{"$f":"$F$69","v":1920},null,0]
[34,"SHE Officer ","SAMTRAC, or Registered with SACPCMP, or \nDiploma in OHS or EHS","Hour",2,{"$f":"$F$69","v":1920},null,0]
[35,"Mechanical Fitter ","Trade Test  certificate, or CAT 5","Hour",4,1920,null,0]
[36,"Pipe Fitter","CAT 5, or Boilermaker trade test certificate","Hour",3,1920,null,0]
[37,"Welder- Plate, Fillet, and pipe qualification required","Welder qualification to ISO 9606","Hour",4,1920,null,0]
[38,"Boilermaker","Boilermaker trade test certificate","Hour",2,1920,null,0]
[39,"Rigger ","Rigging Trade Test  certificate","Hour",2,1920,null,0]
[40,"Semi-skilled Labourer Mechanical ","CAT 3","Hour",6,1920,null,0]
[41,"Storeman","Staking and Storage certificate","Hour",2,1920,null,0]
[42,"General Assistant","Gr. 10, or higher","Hour",10,1920,null,0]
[43,"Fire Watch","Gr. 12 + Fire Watcher certificate","Hour",2,1920,null,0]
[44,"Cleaner","Gr. 10, or higher","Hour",1,{"$f":"$F$69","v":1920},null,{"$f":"E90*F90*G90","v":0}]
[null,"Sub - Total",{"$nulls":5},{"$f":"SUM(H69:H90)","v":0}]
[]
[null,"BILL NO.03:  OVERTIME HOURS "]
["Item no","Staff Description","Qualification","Unit","No. of Resources","Qty. (Hrs.)","Rate (R/Hr.)","Amount"]
[{"$nulls":4},"A","B","C","A x B x C"]
[]
[45,"Site Manager  ","Mechanical Diploma+ 5 years relevant experience","Hour",1,1200,null,{"$f":"E97*F97*G97","v":0}]
[46,"Site Forman ","Trade test + 5 years relevant experience","Hour",1,{"$f":"$F$97","v":1200},null,{"$f":"E98*F98*G98","v":0}]
[47,"Mechanical Supervisor ","Trade test + 3 years relevant experience","Hour",1,{"$f":"$F$97","v":1200},null,0]
[48,"Welding Engineer (As Required)","IWE in line with IIW document IAB-252R2-14 or latest revision, or\nIWT in line with IIW document IAB-252R2-14 or latest revision","Hour",0,0,null,"Rate Only"]
[49,"Welding Supervisor","IWS in line with IIW document IAB-252R2-14 or latest version, or\nIWP in line with IIW document IAB-252R2-14 or latest version","Hour",2,{"$f":"$F$97","v":1200},null,0]
[50,"Welding Inspector ","SAIW Inspector level 2, or IWI-C, or IWI-S","Hour",2,{"$f":"$F$97","v":1200},null,0]
[51,"Draftsman (As Required)","Certificate in CAD Drafting and Design Technology","Hour",1,0,null,"Rate Only"]
[52,"Design Engineer (As Required)","M. Eng. Mechanical + ECSA Registered PR. Eng. + \n5 Years relevant experience","Hour",1,0,null,"Rate Only"]
[53,"Finite Element Analysis Engineer (As Required)","M. Eng. Mechanical + ECSA Registered PR. Eng. + \n5 Years FEA Experience in design by analysis","Hour",1,0,null,"Rate Only"]
[54,"Planner ","Diploma, or NQF 5","Hour",1,{"$f":"$F$97","v":1200},null,0]
[55,"Clerk-Admin ","Gr. 12 + Administrative Diploma or Certificate","Hour",1,{"$f":"$F$97","v":1200},null,0]
[56,"SHE Officer ","SAMTRAC, or Registered with SACPCMP, or \nDiploma in OHS or EHS","Hour",2,{"$f":"$F$97","v":1200},null,0]
[57,"Mechanical Fitter ","Trade Test  certificate, or CAT 5","Hour",4,1200,null,0]
[58,"Pipe Fitter","CAT 5, or Boilermaker trade test certificate","Hour",3,1200,null,0]
[59,"Welder- Plate, Fillet, and pipe qualification required","Welder qualification to ISO 9606","Hour",4,1200,null,0]
[60,"Boilermaker","Boilermaker trade test certificate","Hour",2,1200,null,0]
[61,"Rigger ","Rigging Trade Test  certificate","Hour",2,1200,null,0]
[62,"Semi-skilled Labourer Mechanical ","CAT 3","Hour",6,1200,null,0]
[63,"Storeman","Staking and Storage certificate","Hour",2,1200,null,0]
[64,"General Assistant","Gr. 10, or higher","Hour",10,1200,null,0]
[65,"Fire Watch","Gr. 12 + Fire Watcher certificate","Hour",2,1200,null,0]
[66,"Cleaner","Gr. 10, or higher","Hour",1,{"$f":"$F$97","v":1200},null,{"$f":"E118*F118*G118","v":0}]
[null,"Sub - Total",{"$nulls":5},{"$f":"SUM(H97:H118)","v":0}]
[]
[null,"BILL NO.04:  OVERTIME HOURS "]
["Item no","Staff Description","Qualification","Unit","No. of Resources","Qty. (Hrs.)","Rate (R/Hr.)","Amount"]
[{"$nulls":4},"A","B","C","A x B x C"]
[]
[67,"Site Manager  ","Mechanical Diploma+ 5 years relevant experience","Hour",1,240,null,{"$f":"E125*F125*G125","v":0}]
[68,"Site Forman ","Trade test + 5 years relevant experience","Hour",1,{"$f":"$F$125","v":240},null,{"$f":"E126*F126*G126","v":0}]
[69,"Mechanical Supervisor ","Trade test + 3 years relevant experience","Hour",1,240,null,0]
[70,"Welding Engineer (As Required)","IWE in line with IIW document IAB-252R2-14 or latest revision, or\nIWT in line with IIW document IAB-252R2-14 or latest revision","Hour",1,240,null,0]
[71,"Welding Supervisor","IWS in line with IIW document IAB-252R2-14 or latest version, or\nIWP in line with IIW document IAB-252R2-14 or latest version","Hour",2,240,null,0]
[72,"Welding Inspector ","SAIW Inspector level 2, or IWI-C, or IWI-S","Hour",2,240,null,0]
[73,"Draftsman (As Required)","Certificate in CAD Drafting and Design Technology","Hour",1,240,null,0]
[74,"Design Engineer (As Required)","M. Eng. Mechanical + ECSA Registered PR. Eng. + \n5 Years relevant experience","Hour",1,240,null,0]
[75,"Finite Element Analysis Engineer (As Required)","M. Eng. Mechanical + ECSA Registered PR. Eng. + \n5 Years FEA Experience in design by analysis","Hour",1,240,null,0]
[76,"Planner ","Diploma, or NQF 5","Hour",1,240,null,0]
[77,"Clerk-Admin ","Gr. 12 + Administrative Diploma or Certificate","Hour",1,240,null,0]
[78,"SHE Officer ","SAMTRAC, or Registered with SACPCMP, or \nDiploma in OHS or EHS","Hour",2,240,null,0]
[79,"Mechanical Fitter ","Trade Test  certificate, or CAT 5","Hour",4,240,null,0]
[80,"Pipe Fitter","CAT 5, or Boilermaker trade test certificate","Hour",3,240,null,0]
[81,"Welder- Plate, Fillet, and pipe qualification required","Welder qualification to ISO 9606","Hour",4,240,null,0]
[82,"Boilermaker","Boilermaker trade test certificate","Hour",2,240,null,0]
[83,"Rigger ","Rigging Trade Test  certificate","Hour",2,240,null,0]
[84,"Semi-skilled Labourer Mechanical ","CAT 3","Hour",6,240,null,0]
[85,"Storeman","Staking and Storage certificate","Hour",2,240,null,0]
[86,"General Assistant","Gr. 10, or higher","Hour",10,240,null,0]
[87,"Fire Watch","Gr. 12 + Fire Watcher certificate","Hour",2,240,null,0]
[88,"Cleaner","Gr. 10, or higher","Hour",1,240,null,0]
["1.5 LOGISTICS  - TOTAL (60 MONTHS)",{"$nulls":6},{"$f":"SUM(H125:H146)","v":0}]
[]
[null,"BILL NO.05 - PRELIMINARIES AND GENERAL"]
["Item no","Staff Description","Specification","Unit","No. of Resources","Qty. (Hrs.)","Rate (R/Hr.)","Amount"]
[{"$nulls":4},"A","B","C","A x B x C"]
[]
[89,"Site Bakkie (pickup truck)","Single Cab, 1000 kg payload capacity","No",2,60,null,{"$f":"E153*F153*G153","v":0}]
[90,"Forklift ","3000kg - 3500kg, LPG powered, Lift Height 3m - 6m","No",1,60,null,{"$f":"E154*F154*G154","v":0}]
[91,"Staff transporter","22-Seater","No",2,60,null,0]
[92,"Portable drill","Drill size: 2-24mm, Hammer or Impact type","No",4,1,null,0]
[93,"Magnetic base drilling machine","Annular Drilling: 12mm-50mm, Twist Drilling:1mm-23mm, Countersinking 10mm-55mm","No",2,1,null,0]
[94,"Pressure pump - water ","Electrical operated positive displacement pump, 30 MPA discharge pressure","No",2,1,null,0]
[95,"Pressure testing Manifold ","Refer to Section 2.9.6.1 of CAM-TRB-WSCMO-3-02","No",2,1,null,0]
[96,"Heavy duty colour printer ","3 in 1 (Scan Print and Fax) , Colour print and scan","No",2,1,null,0]
[97,"Laptops with  Microsoft Office","2.7 GHz I7 Processor, 16 GB RAM, 64-bit operating system, 16\" screen (min.)","No",6,1,null,{"$f":"E161*F161*G161","v":0}]
[98,"Angle Grinder (9\")","9\" / 230mm, 2000W ","No",4,1,null,0]
[99,"Angle Grinder (4.5\")","4.5\", 900W ","No",6,1,null,0]
[100,"Pencil grinder","500W, Max grinding tool diameter: 25mm","No",6,1,null,0]
[101,"Welding machine (400A, SMAW / MMA)","SMAW / MMA, Inverter type, Input Voltage: 3 phase-380V, Output 20-400A","No",2,1,null,0]
[102,"Welding machine (200A, SMAW / MMA)","SMAW / MMA, Inverter type, Output 200A","No",4,1,null,0]
[103,"Welding machine (230A, GTAW / TIG)","GTAM / TIG, AC/DC Waveform setting, Pulse Welding Capability, Soft-Start Capability,  230V - 50Hz. Single phase power input, Gas or Water cooled, Welding current max.: 230A","No",2,1,null,0]
[104,"Pipe Bending Machine","Heavy duty up to 6\" normal pipe size","No",1,1,null,0]
[105,"Electrode Baking Oven","300°C","No",2,1,null,0]
[106,"Electrode Holding Oven","150°C","No",2,1,null,0]
[107,"Impact wrench","1\" square drive, 4000 Nm torque","No",2,1,null,0]
[108,"Hydraulic torque machine (power pack and torque wrench)","1.5\" Square Drive Hydraulic Torque Wrench 10 000 Nm (min.), Low profile torque wrench 2000 Nm. (min.)","No",1,1,null,0]
[109,"Industrial Plate Rolling machine ","Machine Rolling Capacity: 20mm, Rolling length:3200mm, Yield limit 245MPA, Required rolling Diameter: 300mm - 1100mm","No",1,1,null,0]
[110,"Post Weld Heat Treatment machine","65kVA 6 Channel PWHT Machine,  Resistive heating","No",1,1,null,0]
[111,"Torque wrench ","1\" square drive, 300-1500Nm Torque, ","No",1,1,null,0]
[112,"Torque wrench ","1/2\" square drive, 60-340Nm Torque, ","No",1,1,null,0]
[113,"Plasma  Cutter","40 Amp, 220V","No",1,1,null,0]
[114,"Acetylene Cutter ","All inclusive: Acetylene Torch, Hoses, Cylinder Trolly, Cylinders, Regulator, Gauges, Flash Back Arrestor, Flint lighter, Nozzle cleaner, Nozzles","No",1,1,null,0]
[115,"Hydraulic  jack","15 Ton Hand Pump, Hoses, Gauge with Gauge adaptor, Jack: 15Ton Capacity, 100mm stroke","No",2,1,null,0]
[116,"Rigging Equipment ","Including slings, chain block and eyebolts, Beam-crawler (10 ton capacity)","No",4,1,null,0]
[117,"Tap and Die set ","M6 to M25 ","No",1,1,null,0]
[118,"Diesel for bakkie (Pickup Truck)","60 Liters per month per Bakkie for two Bakkies (1 Unit = 120l/month)","No",{"$f":"60*2","v":120},60,null,0]
[119,"Material Verification","Wet-chem analysis, mechanical testing (yield and tensile), impact testing ","No",25,1,null,0]
[120,"PPE - Overhauls ","two - piece (Jacket and Trousers) D59 Flame and Acid Resistant, 4 sets yearly per employee","No",{"$f":"SUM($E$43:$E$64)*4","v":204},5,null,{"$f":"E184*F184*G184","v":0}]
[121,"PPE - Shoes","Steal-Toe, NRCS approved, Sole Resistant of 90°C, 2 sets yearly per employee","No",{"$f":"SUM($E$43:$E$64)*2","v":102},5,null,0]
[122,"Medical screening- in ","Registered Medical Centre","No",{"$f":"SUM(E43:E64)","v":51},1,null,0]
[123,"Medical screening- Renewal ","Registered Medical Centre","No",{"$f":"SUM(E43:E64)","v":51},4,null,0]
[124,"Medical screening- out ","Registered Medical Centre","No",{"$f":"SUM(E43:E64)","v":51},1,null,0]
[125,"Site Establishment ","Requirement to be finalised during the contracting phase","No",1,1,null,0]
[126,"Site De establishment ","Requirement to be finalised during the contracting phase","No",1,1,null,0]
[127,"Accommodation - White Collar workers","Site Manager (1), Mechanical Supervisor (1) ,  Site Forman (1), Welding Supervisors (2), Welding Inspectors (2)- (1 Unit = Accommodation for 7 people for 60 Months)","No",7,60,null,0]
[128,"Accommodation - Blue Collar workers","Planner (1), SHE Officer (1), Mechanical Fitter (4), Pipe Fitters (3), Welders (4),  Boilermakers (2), Riggers (2) - (1 Unit = Accommodation for 17 people for 60 Months)","No",17,60,null,0]
[129,"Toolboxes","74 Piece, Socket wrench and socket sizes 8-32, Spanner set sizes 6-22, Allen key set sizes 1.5 - 10, shifting spanner - 25mm, normal pliers, long-nose pliers, groove-joint pliers, Phillips Screwdrivers No.1x80 + NO.2x38 + NO.3x150, Flat screwdrivers 5.5x38 + 5.5x100 + 8x150","No",15,1,null,0]
[130,"Measuring Tools","Measuring Tapes (15), Verners 0-300mm (4), Verners 0-500mm (4), Verners 0-1000mm (2), Metric Feeler Gauges 0.05-1mm (4), ","No",2,1,null,0]
[131,"Welding consumables","Welding PPE, Filler Material, Tungsten tip for TIG, Gas (per welding procedure - 360 total ), Gas Hoses, Welding leads, Ceramic Nozzles for TIG torch, ","No",1,1,null,0]
[132,"Mechanical Consumables","Acetylene  gas cylinder (60), Oxygen gas cylinder (120), Grinding disks 4.5\" (1800), Grinding disks 9\" (1200), cutting disks 4.5\" (3000), cutting disks 9\" (1800), copper brushes for 4.5\" grinder (600), Sealant for galvanized pipe (300), Threaded tape PTFE (600)","No",1,1,null,{"$f":"E196*F196*G196","v":0}]
[]
[null,"Sub - Total",{"$nulls":5},{"$f":"SUM(H152:H196)","v":0}]
[]
[null,"GRAND-TOTAL (EXCL. VAT)",{"$nulls":5},{"$f":"H198+H147+H119+H91+H65","v":0}]

{"sheet":"Divider.","index":5,"n_rows":13,"n_cols":1,"rows_kept":13,"merged":[[12,0,26,8]]}
{"$rows_empty":12}
["SECTION 2:  - OUTAGE BOQ"]

{"sheet":"Sec 02 - Outage","index":6,"n_rows":159,"n_cols":8,"rows_kept":159,"merged":[[12,1,12,2],[14,1,14,2],[16,1,16,2],[20,1,20,2],[22,1,22,2],[26,1,26,2],[30,1,30,2],[34,1,34,2],[36,1,36,2],[38,1,38,2]]}
[]
["Item no","Staff Description","Qualification","Unit","No. of Resources","Qty. (Hrs.)","Rate (R/Hr.)","Amount"]
[{"$nulls":4},"A","B","C","A x B x C"]
[]
[null,"SECTION - 2 OUTAGE"]
[]
[null,"BILL OF QUANTITIES"]
[]
[null,"PREAMBLE"]
[]
[null,"Currency"]
[]
[null,"All pricing and amounts to be in the currency of South African Rands (ZAR)"]
[]
[null,"All individual amounts in these bills of quantities exclude Value Added Tax (VAT). VAT is to be calculated as a lump sum and added to the total of all values in the Final Summary under the item provided for VAT"]
[]
[null,"A detailed  and / or itemised breakdown of the P&G's Items will be requested only from the successful bidders for vetting by the employer."]
[]
[null,"RATES"]
[]
[null,"The tenderer is advised that any rate that is required for work must include the following breakdown"]
[]
[null,"Material, labour, plant, wastage, transport and profit."]
[]
[null,"LABOUR INTENSIVE ITEMS"]
[]
[null,"The contractor shall comply with all requirements of the \"Code of Good Practice for Employment and Conditions of Work for Special Public Works Programmes\" issued in terms of the \"Basic Conditions of Employment Act, 1997 (Act No. 75 of 1997)\" and the related \"Ministerial Determination\", for the employment of locally employed temporary workers on a labour-intensive infrastructure project under the Expanded Public Works Programme (EPWP)"]
[]
[null,"SPECIFICATION DOCUMENT"]
[]
[null,"The Contractor is reffered to the Specification Document for the full details of the scope and they are urged to read this document prior to pricing this work."]
[]
[null,"SCOPE OF WORKS"]
[]
[null,"The scope of works encompasses the provision of turbine welding and maintenance services for a priod of 60 months at Camden Power Station"]
[]
[null,"PRICING OF THE BILLS OF QUANTITIES"]
[]
[null,"Any items left unpriced will be understood to be provided free of charge and no claim for any extras arising out of the Tenderers omission to price any item will be entertained"]
[]
[null,"BILL NO.01:  NORMAL WORKING HOURS - TOTAL (36 MONTHS)"]
["Item no","Staff Description","Qualification","Unit","No. of Resources","Qty. (Hrs.)","Rate (R/Hr.)","Amount"]
[{"$nulls":4},"A","B","C","A x B x C"]
[1,"Site Foreman","Trade test + 5 years relevant experience","Hour",1,6480,null,{"$f":"E44*F44*G44","v":0}]
[2,"Outage Coordinator ","Mechanical Diploma (N6) + 5 years relevant experience","Hour",1,{"$f":"$F$44","v":6480},null,{"$f":"E45*F45*G45","v":0}]
[3,"Welding Supervisor","IWS in line with IIW document IAB-252R2-14 or latest version, or\nIWP in line with IIW document IAB-252R2-14 or latest version","Hour",1,{"$f":"$F$44","v":6480},null,0]
[4,"Mechanical Supervisor","Trade test + 3 years relevant experience","Hour",1,{"$f":"$F$44","v":6480},null,0]
[5,"Welding Inspector (QC)","SAIW Inspector level 2, or IWI-C, or IWI-S","Hour",2,{"$f":"$F$44","v":6480},null,0]
[6,"Planner","Diploma, or NQF 5","Hour",1,{"$f":"$F$44","v":6480},null,0]
[7,"SHE Officer","SAMTRAC, or Registered with SACPCMP, or \nDiploma in OHS or EHS","Hour",2,{"$f":"$F$44","v":6480},null,0]
[8,"Admin Clerk","Gr. 12 + Administrative Diploma or Certificate","Hour",1,6480,null,0]
[9,"Mechanical Fitter","Trade Test  certificate, or CAT 5","Hour",8,6480,null,0]
[10,"Pipe Fitter","CAT 5, or Boilermaker trade test certificate","Hour",3,6480,null,0]
[11,"Welder ( Plate,Fillet, and pipe qualification required)","Welder qualification to ISO 9606-1","Hour",2,6480,null,0]
[12,"Boilermaker","Boilermaker trade test certificate","Hour",2,6480,null,0]
[13,"Rigger  ","Rigging Trade Test  certificate","Hour",4,6480,null,0]
[14,"Semi-skilled ","CAT 3","Hour",8,6480,null,0]
[15,"Storeman","Staking and Storage certificate","Hour",1,6480,null,0]
[16,"General Assistant ","Gr. 10, or higher","Hour",6,6480,null,0]
[17,"Fire Watch ","Gr. 12 + Fire Watcher certificate","Hour",2,6480,null,{"$f":"E60*F60*G60","v":0}]
[18,"Cleaner x 1","Gr. 10, or higher","Hour",1,6480,null,0]
[]
[null,"Sub-Total",{"$nulls":5},{"$f":"SUM(H44:H61)","v":0}]
[]
[null,"BILL NO.02:  OVERTIME HOURS"]
["Item no","Staff Description","Qualification","Unit","No. of Resources","Qty. (Hrs.)","Rate (R/Hr.)","Amount"]
[{"$nulls":4},"A","B","C","A x B x C"]
[19,"Site Foreman","Trade test + 5 years relevant experience","Hour",1,1152,null,{"$f":"E68*F68*G68","v":0}]
[20,"Outage Coordinator ","Mechanical Diploma (N6) + 5 years relevant experience","Hour",1,{"$f":"$F$68","v":1152},null,{"$f":"E69*F69*G69","v":0}]
[21,"Welding Supervisor","IWS in line with IIW document IAB-252R2-14 or latest version, or\nIWP in line with IIW document IAB-252R2-14 or latest version","Hour",1,1152,null,0]
[22,"Mechanical Supervisor","Trade test + 3 years relevant experience","Hour",1,1152,null,0]
[23,"Welding Inspector (QC)","SAIW Inspector level 2, or IWI-C, or IWI-S","Hour",2,1152,null,0]
[24,"Planner","Diploma, or NQF 5","Hour",1,1152,null,0]
[25,"SHE Officer","SAMTRAC, or Registered with SACPCMP, or \nDiploma in OHS or EHS","Hour",2,1152,null,0]
[26,"Admin Clerk","Gr. 12 + Administrative Diploma or Certificate","Hour",1,1152,null,0]
[27,"Mechanical Fitter","Trade Test  certificate, or CAT 5","Hour",8,1152,null,0]
[28,"Pipe Fitter","CAT 5, or Boilermaker trade test certificate","Hour",3,1152,null,0]
[29,"Welder ( Plate,Fillet, and pipe qualification required)","Welder qualification to ISO 9606-1","Hour",3,1152,null,0]
[30,"Boilermaker","Boilermaker trade test certificate","Hour",2,1152,null,0]
[31,"Rigger  ","Rigging Trade Test  certificate","Hour",4,1152,null,0]
[32,"Semi-skilled ","CAT 3","Hour",8,1152,null,0]
[33,"Storeman","Staking and Storage certificate","Hour",1,1152,null,0]
[34,"General Assistant ","Gr. 10, or higher","Hour",10,1152,null,0]
[35,"Fire Watch ","Gr. 12 + Fire Watcher certificate","Hour",2,1152,null,0]
[36,"Cleaner x 1","Gr. 10, or higher","Hour",1,1152,null,0]
[]
[null,"Sub-Total",{"$nulls":5},{"$f":"SUM(H68:H85)","v":0}]
[]
[null,"BILL NO.03:  OVERTIME HOURS - TOTAL (36 MONTHS)"]
["Item no","Staff Description","Qualification","Unit","No. of Resources","Qty. (Hrs.)","Rate (R/Hr.)","Amount"]
[{"$nulls":4},"A","B","C","A x B x C"]
[37,"Site Foreman","Trade test + 5 years relevant experience","Hour",1,576,null,{"$f":"E92*F92*G92","v":0}]
[38,"Outage Coordinator ","Mechanical Diploma (N6) + 5 years relevant experience","Hour",1,{"$f":"$F$92","v":576},null,{"$f":"E93*F93*G93","v":0}]
[39,"Welding Supervisor","IWS in line with IIW document IAB-252R2-14 or latest version, or\nIWP in line with IIW document IAB-252R2-14 or latest version","Hour",1,576,null,0]
[40,"Mechanical Supervisor","Trade test + 3 years relevant experience","Hour",1,576,null,0]
[41,"Welding Inspector (QC)","SAIW Inspector level 2, or IWI-C, or IWI-S","Hour",2,576,null,0]
[42,"Planner","Diploma, or NQF 5","Hour",1,576,null,0]
[43,"SHE Officer","SAMTRAC, or Registered with SACPCMP, or \nDiploma in OHS or EHS","Hour",2,576,null,0]
[44,"Admin Clerk","Gr. 12 + Administrative Diploma or Certificate","Hour",1,576,null,0]
[45,"Mechanical Fitter","Trade Test  certificate, or CAT 5","Hour",8,576,null,0]
[46,"Pipe Fitter","CAT 5, or Boilermaker trade test certificate","Hour",3,576,null,0]
[47,"Welder ( Plate,Fillet, and pipe qualification required)","Welder qualification to ISO 9606-1","Hour",3,576,null,0]
[48,"Boilermaker","Boilermaker trade test certificate","Hour",2,576,null,0]
[49,"Rigger  ","Rigging Trade Test  certificate","Hour",4,576,null,0]
[50,"Semi-skilled ","CAT 3","Hour",8,576,null,0]
[51,"Storeman","Staking and Storage certificate","Hour",1,576,null,0]
[52,"General Assistant ","Gr. 10, or higher","Hour",14,576,null,0]
[53,"Fire Watch ","Gr. 12 + Fire Watcher certificate","Hour",2,576,null,0]
[54,"Cleaner x 1","Gr. 10, or higher","Hour",1,576,null,0]
[]
[null,"Sub-Total",{"$nulls":5},{"$f":"SUM(H92:H109)","v":0}]
[]
[null,"BILL NO.04:  OVERTIME HOURS  - TOTAL (36 MONTHS)"]
["Item no","Staff Description","Qualification","Unit","No. of Resources","Qty. (Hrs.)","Rate (R/Hr.)","Amount"]
[{"$nulls":4},"A","B","C","A x B x C"]
[55,"Site Foreman","Trade test + 5 years relevant experience","Hour",1,468,null,{"$f":"E116*F116*G116","v":0}]
[56,"Outage Coordinator ","Mechanical Diploma (N6) + 5 years relevant experience","Hour",1,{"$f":"$F$116","v":468},null,{"$f":"E117*F117*G117","v":0}]
[57,"Welding Supervisor","IWS in line with IIW document IAB-252R2-14 or latest version, or\nIWP in line with IIW document IAB-252R2-14 or latest version","Hour",1,468,null,0]
[58,"Mechanical Supervisor","Trade test + 3 years relevant experience","Hour",1,468,null,0]
[59,"Welding Inspector (QC)","SAIW Inspector level 2, or IWI-C, or IWI-S","Hour",2,468,null,0]
[60,"Planner","Diploma, or NQF 5","Hour",1,468,null,0]
[61,"SHE Officer","SAMTRAC, or Registered with SACPCMP, or \nDiploma in OHS or EHS","Hour",2,468,null,0]
[62,"Admin Clerk","Gr. 12 + Administrative Diploma or Certificate","Hour",1,468,null,0]
[63,"Mechanical Fitter","Trade Test  certificate, or CAT 5","Hour",8,468,null,0]
[64,"Pipe Fitter","CAT 5, or Boilermaker trade test certificate","Hour",3,468,null,0]
[65,"Welder ( Plate,Fillet, and pipe qualification required)","Welder qualification to ISO 9606-1","Hour",3,468,null,0]
[66,"Boilermaker","Boilermaker trade test certificate","Hour",2,468,null,0]
[67,"Rigger  ","Rigging Trade Test  certificate","Hour",4,468,null,0]
[68,"Semi-skilled ","CAT 3","Hour",8,468,null,0]
[69,"Storeman","Staking and Storage certificate","Hour",1,468,null,0]
[70,"General Assistant ","Gr. 10, or higher","Hour",14,468,null,0]
[71,"Fire Watch ","Gr. 12 + Fire Watcher certificate","Hour",2,468,null,0]
[72,"Cleaner x 1","Gr. 10, or higher","Hour",1,468,null,{"$f":"E133*F133*G133","v":0}]
[]
[null,"Sub-Total",{"$nulls":5},{"$f":"SUM(H116:H133)","v":0}]
[]
[null,"BILL NO.05:  LOGISTICS  - TOTAL (36 MONTHS)"]
["Item no","Staff Description","Specification","Unit","No. of Resources","Qty. (Hrs.)","Rate (R/Hr.)","Amount"]
[{"$nulls":4},"A","B","C","A x B x C"]
[]
[73,"Staff transporter","22-Seater","Number",3,36,null,{"$f":"E141*F141*G141","v":0}]
[74,"Portable drill","Drill size: 2-24mm, Hammer or Impact type","Number",2,1,null,{"$f":"E142*F142*G142","v":0}]
[75,"Angle Grinder (9\")","9\" / 230mm, 2000W ","Number",3,1,null,0]
[76,"Angle Grinder (4.5\")","4.5\", 900W ","Number",3,1,null,0]
[77,"Pencil grinder","500W, Max grinding tool diameter: 25mm","Number",3,1,null,0]
[78,"Welding machine (400A, SMAW / MMA)","SMAW / MMA, Inverter type, Input Voltage: 3 phase-380V, Output 20-400A","Number",1,1,null,0]
[79,"Welding machine (200A, SMAW / MMA)","SMAW / MMA, Inverter type, Output 200A","Number",1,1,null,0]
[80,"PPE - Overhauls ","two - piece (Jacket and Trousers) D59 Flame and Acid Resistant, 4 sets yearly per employee","Number",{"$f":"4*SUM(E44:E61)","v":188},3,null,0]
[81,"PPE - Shoes","Steal-Toe, NRCS approved, Sole Resistant of 90°C, 2 sets yearly per employee","Number",{"$f":"2*SUM(E44:E61)","v":94},3,null,0]
[82,"Medical screening- in ","Registered Medical Centre","Number",{"$f":"SUM(E44:E61)","v":47},1,null,0]
[83,"Medical screening- Renewal","Registered Medical Centre","Number",{"$f":"SUM(E44:E61)","v":47},2,null,{"$f":"E151*F151*G151","v":0}]
[84,"Medical screening- out ","Registered Medical Centre","Number",{"$f":"SUM(E44:E61)","v":47},1,null,0]
[85,"Accommodation - White Collar workers","Site Foreman (1), Outage Coordinator (1), Mechanical Supervisor (1) , Welding Supervisors (1), Welding Inspectors (2) - \n(1 Unit = Accommodation for 6 people for 36 Months)","Number",6,36,null,0]
[86,"Accommodation - Blue Collar workers","Planner (1),  SHE Officer (2), Mechanical Fitter (8), Pipe Fitter (3), Welder (2), Boilermaker (2), Rigger (4).\n (1 Unit = Accommodation for 22 people for 60 Months)","Number",22,36,null,0]
[87,"Toolboxes","74 Piece, Socket wrench and socket sizes 8-32, Spanner set sizes 6-22, Allen key set sizes 1.5 - 10, shifting spanner - 25mm, normal pliers, long-nose pliers, groove-joint pliers, Phillips Screwdrivers No.1x80 + NO.2x38 + NO.3x150, Flat screwdrivers 5.5x38 + 5.5x100 + 8x150","Number",15,1,null,0]
[]
[null,"Sub-Total",{"$nulls":5},{"$f":"SUM(H141:H155)","v":0}]
[]
[null,"GRAND -  TOTAL (EXCL. VAT)",{"$nulls":5},{"$f":"H157+H135+H111+H87+H63","v":0}]

{"sheet":"Divider. (2)","index":7,"n_rows":13,"n_cols":1,"rows_kept":13,"merged":[[12,0,26,8]]}
{"$rows_empty":12}
["FINAL SUMMARY"]

{"sheet":"Final Summary","index":8,"n_rows":18,"n_cols":3,"rows_kept":18,"merged":[[0,0,0,2],[2,0,2,2],[17,0,17,1]]}
["THE PROVISION OF TURBINE WELDING AND MAINTENANCE SERVICES FOR A PERIOD OF 60 MONTHS AT CAMDEN POWER STATION"]
[]
["FINAL SUMMARY"]
[]
[]
["ITEM","DESCRIPTION","AMOUNT"]
[]
[1,"Section No.01 - Maintenance",{"$f":"'Sec 01 - Maint'!H200","v":0}]
[]
[2,"Section No.02 - Outage",{"$f":"'Sec 02 - Outage'!H159","v":0}]
[]
[]
[]
[null,"Sub - Total",{"$f":"SUM(C7:C13)","v":0}]
[]
[4,"VAT    @    15%",{"$f":"C14*0.15","v":0}]
[]
["TOTAL BID PRICE  (INCL. VAT) - TRANFERRED TO FORM OF OFFER AND ACCEPTANCE",null,{"$f":"SUM(C14:C17)","v":0}]